bitfinex-derivatives/quotes_ETHF0:USTF0_20250616
["timestamp","ask_amount","ask_price","bid_price","bid_amount"]
[1750065641748,6.94807,2624.2,2624.1,0.00571059]
[1750065641950,6.186,2624.2,2624.1,0.00571059]
[1750065642149,8.30567,2624.2,2624.1,0.00571059]
[1750065642545,9.21196264,2624.2,2624.1,0.00571059]
[1750065643448,14.21196264,2624.2,2624.1,0.00571059]
[1750065643645,14.46726264,2624.2,2624.1,0.00571059]
[1750065644754,14.77061187,2624.2,2624.1,0.00571059]
[1750065646549,9.77061187,2624.2,2624.1,0.00571059]
[1750065649252,1.97171187,2624.2,2624.1,0.00571059]
[1750065649557,3.96985,2624.3,2624.1,0.76781059]
[1750065649757,3.96985,2624.3,2624.2,1.2678]
[1750065649955,4.87515872,2624.3,2624.2,2.02987]
[1750065650249,3.2078,2624.3,2624.2,2.02987]
[1750065650655,3.2078,2624.3,2624.2,3.31907]
[1750065651753,6.187,2624.4,2624.3,0.76204]
[1750065651960,6.187,2624.4,2624.3,2.00524]
[1750065652559,0.00571059,2624.5,2624.4,0.76201]
[1750065652758,0.00571059,2624.5,2624.4,2.00521]
[1750065660655,5.82181652,2625.1,2624.5,0.76198]
[1750065660856,6.297,2625.0,2624.9,0.76187]
[1750065661364,7.05884,2625.0,2624.9,0.76187]
[1750065661555,7.05884,2625.0,2624.8,0.6676]
[1750065661760,7.05884,2625.0,2624.8,1.42948]
[1750065662264,0.76187,2624.9,2624.8,1.42948]
[1750065662762,7.05886,2625.0,2624.9,0.76187]
[1750065662968,6.297,2625.0,2624.9,0.76187]
[1750065663159,0.76187,2624.9,2624.8,0.6676]
[1750065663459,3.37588652,2624.9,2624.8,0.6676]
[1750065663855,3.37588652,2624.9,2624.8,1.4295]
[1750065664253,3.37588652,2624.9,2624.8,0.7619]
[1750065664454,0.76192,2624.8,2624.7,0.76192]
[1750065664655,0.76192,2624.8,2624.6,0.6359]
[1750065664656,0.76193,2624.7,2624.6,1.39784]
[1750065665055,3.37594652,2624.7,2624.6,0.6359]
[1750065668467,3.37594652,2624.7,2624.6,1.39786]
[1750065669057,9.67194652,2624.7,2624.6,1.39786]
[1750065669665,7.05793,2624.7,2624.6,0.6359]
[1750065669863,9.67194652,2624.7,2624.6,1.39786]
[1750065670367,6.296,2624.8,2624.7,0.7619]
[1750065671358,7.0579,2624.8,2624.7,0.7619]
[1750065671869,6.296,2624.8,2624.7,0.7619]
[1750065672465,7.0579,2624.8,2624.7,0.7619]
[1750065673166,0.7619,2624.8,2624.7,0.7619]
[1750065673369,7.05789,2624.9,2624.8,0.7619]
[1750065673570,3.37587652,2625.0,2624.9,0.76187]
[1750065673868,30.76086,2625.0,2624.9,0.76187]
[1750065674166,7.05784,2625.0,2624.9,0.76187]
[1750065674366,6.296,2625.0,2624.9,0.76187]
[1750065674867,9.67185652,2625.0,2624.9,0.76187]
[1750065677764,8.91001652,2625.0,2624.9,0.76187]
[1750065678769,6.296,2625.0,2624.9,0.76187]
[1750065679462,7.05784,2625.0,2624.9,0.76187]
[1750065679668,9.67185652,2625.0,2624.9,0.76187]
[1750065681773,8.91001652,2625.0,2624.9,0.76187]
[1750065682469,3.2078,2625.4,2625.3,0.76175]
[1750065682671,3.96952,2625.4,2625.3,0.76175]
[1750065684168,3.2078,2625.4,2625.3,0.76175]
[1750065684572,3.96952,2625.4,2625.3,0.76175]
[1750065688072,3.2078,2625.4,2625.3,0.76175]
[1750065688872,32.53401652,2625.5,2625.4,0.76172]
[1750065689267,0.76174,2625.4,2625.3,0.76173]
[1750065689663,0.76175,2625.3,2625.2,1.2692]
[1750065689875,3.37576652,2625.3,2625.2,1.2692]
[1750065690377,3.37576652,2625.3,2625.2,2.03096]
[1750065690676,3.37576652,2625.3,2625.2,0.6469]
[1750065691179,3.37576652,2625.3,2625.2,1.40868]
[1750065691871,3.37576652,2625.3,2625.2,0.6469]
[1750065692468,3.37576652,2625.3,2625.2,1.40868]
[1750065692667,3.37576652,2625.3,2625.2,0.6469]
[1750065692871,3.37576652,2625.3,2625.2,1.40868]
[1750065693279,3.37576652,2625.3,2625.2,0.6469]
[1750065693479,0.76181,2625.2,2625.1,0.76181]
[1750065693679,1.99211,2625.2,2625.1,0.76181]
[1750065694279,3.37582652,2625.2,2625.1,0.76181]
[1750065694570,26.19901652,2625.2,2625.1,0.76181]
[1750065694975,2.61401652,2625.2,2625.1,0.76181]
[1750065695768,0.76181,2625.1,2625.0,3.0476]
[1750065695983,2.69721,2625.1,2625.0,3.0476]
[1750065696177,0.76184,2625.0,2624.9,3.2205]
[1750065696374,0.76201,2624.4,2624.3,5.49060864]
[1750065696580,0.76201,2624.4,2624.3,3.96982]
[1750065696581,3.37602652,2624.4,2624.3,3.96982]
[1750065696781,2.61401652,2624.4,2624.3,3.96982]
[1750065696982,3.37602652,2624.4,2624.2,0.6429]
[1750065697284,0.76204,2624.3,2624.2,0.6429]
[1750065697786,0.76207,2624.2,2624.1,1.35751059]
[1750065697989,26.99308652,2624.2,2624.1,1.35751059]
[1750065699989,26.23101652,2624.2,2624.1,2.11961059]
[1750065700281,23.617,2624.2,2624.1,1.44331059]
[1750065700879,24.37907,2624.2,2624.1,1.44331059]
[1750065701988,6.211,2624.2,2624.1,0.68121059]
[1750065702890,6.211,2624.2,2624.1,2.78130059]
[1750065704383,9.58708652,2624.2,2624.1,2.01921059]
[1750065704790,11.55508652,2624.2,2624.1,2.78131059]
[1750065705192,11.55508652,2624.2,2624.1,2.01921059]
[1750065706387,0.76206,2624.3,2624.2,0.76206]
[1750065706588,0.76207,2624.2,2624.1,2.78129059]
[1750065707485,29.813,2624.3,2624.1,2.01921059]
[1750065707794,0.76207,2624.2,2624.1,2.78129059]
[1750065709391,2.61401652,2624.4,2624.1,2.01921059]
[1750065709595,30.56602,2624.4,2624.3,0.76204]
[1750065710091,6.97401,2624.4,2624.3,0.76204]
[1750065710489,0.76206,2624.3,2624.2,0.76205]
[1750065710789,29.791,2624.5,2624.4,0.76201]
[1750065710990,5.82181652,2625.0,2624.3,3.2078]
[1750065711187,6.97393,2624.7,2624.6,0.76194]
[1750065711387,30.55393,2624.7,2624.6,0.76194]
[1750065711783,3.2078,2625.0,2624.7,0.76193]
[1750065711983,0.76171,2625.5,2625.0,0.76184]
[1750065712191,0.00571059,2625.6,2625.5,0.76169]
[1750065712384,5.11769059,2625.6,2625.1,0.6501]
[1750065712587,5.11769059,2625.6,2624.4,1.905]
[1750065712588,0.76187,2624.9,2624.8,0.6229]
[1750065712788,0.76187,2624.9,2624.6,0.76195]
[1750065712789,0.76192,2624.8,2624.6,0.76195]
[1750065713097,0.7619,2624.8,2624.7,0.76193]
[1750065713791,3.37589652,2624.9,2624.7,0.76193]
[1750065714193,0.7619,2624.8,2624.7,0.76193]
[1750065714397,6.211,2625.0,2624.8,0.7619]
[1750065714589,6.97285,2625.0,2624.8,0.7619]
[1750065714887,6.97285,2625.0,2624.6,1.2831]
[1750065715489,6.97285,2625.0,2624.8,0.76187]
[1750065715894,6.97285,2625.0,2624.9,0.642]
[1750065717197,6.97285,2625.0,2624.9,1.98]
[1750065718699,6.97285,2625.0,2624.9,1.338]
[1750065718897,8.21725,2625.0,2624.9,1.338]
[1750065719594,6.97285,2625.0,2624.9,1.338]
[1750065720094,6.97285,2625.0,2624.9,2.09987]
[1750065720897,6.97285,2625.0,2624.9,1.338]
[1750065721093,0.76185,2625.0,2624.9,1.338]
[1750065721601,0.76185,2625.0,2624.9,2.09987]
[1750065721804,33.14184652,2625.1,2625.0,0.76184]
[1750065722200,32.38001652,2625.1,2625.0,1.42114]
[1750065722402,2.61401652,2625.1,2625.0,1.42114]
[1750065723200,3.37582652,2625.1,2625.0,1.42114]
[1750065723500,3.37582652,2625.1,2625.0,0.6593]
[1750065723801,3.37582652,2625.1,2625.0,1.42114]
[1750065724902,0.76184,2625.0,2624.9,1.338]
[1750065726403,0.76184,2625.0,2624.9,2.09987]
[1750065726707,3.37584652,2625.1,2625.0,0.76184]
[1750065727411,0.76184,2625.0,2624.9,2.09985]
[1750065727610,0.76184,2625.0,2624.9,1.338]
[1750065727908,0.76184,2625.0,2624.9,2.09987]
[1750065728819,2.61401652,2625.1,2625.0,0.76184]
[1750065729011,9.56882652,2625.1,2625.0,0.76184]
[1750065730019,1.00184,2625.0,2624.9,1.338]
[1750065731019,0.76184,2625.0,2624.9,1.85987]
[1750065731209,0.76184,2625.0,2624.9,1.098]
[1750065731619,0.76184,2625.0,2624.9,1.85987]
[1750065732022,0.76184,2625.0,2624.9,1.098]
[1750065732918,9.56884652,2625.1,2624.9,1.098]
[1750065733118,9.56884652,2625.1,2625.0,0.76184]
[1750065733825,9.56882652,2625.1,2625.0,0.76184]
[1750065735428,2.61401652,2625.4,2625.2,0.76178]
[1750065735627,33.06673652,2625.4,2625.3,1.3128]
[1750065736828,32.30501652,2625.4,2624.8,4.72858864]
[1750065737026,3.37588652,2624.9,2624.8,4.63198]
[1750065737226,3.37588652,2624.9,2624.8,3.8701]
[1750065737520,3.37588652,2624.9,2624.8,6.15278864]
[1750065738027,2.61401652,2624.9,2624.8,6.15278864]
[1750065738814,2.61401652,2624.9,2624.8,7.25118864]
[1750065739524,2.61401652,2624.9,2624.8,5.7304]
[1750065740727,2.61401652,2624.9,2624.8,8.01158297]
[1750065741629,9.56783652,2625.1,2625.0,0.76184]
[1750065741932,9.56782652,2625.1,2625.0,2.28416989]
[1750065742616,26.09501652,2625.3,2625.2,0.76176]
[1750065742823,26.09501652,2625.3,2624.9,2.28118297]
[1750065742824,6.9538,2625.2,2625.1,2.15652989]
[1750065743723,6.192,2625.2,2625.1,2.91831989]
[1750065743924,6.95378,2625.2,2625.1,2.91831989]
[1750065744730,0.76178,2625.2,2625.1,2.91831989]
[1750065748734,0.76178,2625.2,2625.1,2.15652989]
[1750065750324,0.76178,2625.2,2625.1,2.91833989]
[1750065752337,0.76178,2625.2,2625.1,2.15652989]
[1750065752729,0.76178,2625.2,2625.1,2.91833989]
[1750065755125,6.192,2625.3,2625.2,0.76178]
[1750065755440,6.95375,2625.3,2625.2,2.28410989]
[1750065755640,6.95375,2625.3,2625.2,2.94840989]
[1750065755939,6.192,2625.3,2625.2,2.94840989]
[1750065756241,6.95375,2625.3,2625.2,2.94840989]
[1750065759539,6.95375,2625.3,2625.2,4.04720989]
[1750065760540,6.95375,2625.3,2625.2,3.28542989]
[1750065760735,6.95375,2625.3,2625.2,2.62112989]
[1750065760942,11.48145,2625.3,2625.2,1.0988]
[1750065770035,11.48145,2625.3,2625.1,0.6772]
[1750065770036,0.76178,2625.2,2625.1,0.6772]
[1750065770235,28.67799652,2625.2,2625.1,0.6772]
[1750065776339,28.65699652,2625.2,2625.1,0.6772]
[1750065783742,28.65699652,2625.2,2625.1,2.3188]
[1750065784538,28.65699652,2625.2,2625.1,1.6416]
[1750065786545,0.76184,2625.0,2624.9,0.6328]
[1750065786747,26.73785652,2625.0,2624.9,0.6328]
[1750065787347,0.76195,2624.6,2624.5,1.52232989]
[1750065787649,0.76195,2624.6,2624.1,3.79000002]
[1750065787650,0.76201,2624.4,2624.3,1.52232989]
[1750065787842,0.76204,2624.3,2624.2,1.2891]
[1750065788544,0.76204,2624.3,2624.2,1.9668]
[1750065788946,26.73804652,2624.4,2624.2,2.72887]
[1750065789445,6.071,2624.6,2624.2,2.72887]
[1750065789446,29.434,2624.3,2624.2,3.96577]
[1750065789644,6.071,2624.3,2624.2,2.72887]
[1750065790348,6.83304,2624.3,2624.2,2.72887]
[1750065791748,6.071,2624.3,2624.2,2.72887]
[1750065792751,29.435,2624.3,2624.2,2.72887]
[1750065792950,23.364,2624.3,2624.2,2.72887]
[1750065793344,9.44705652,2624.4,2624.3,0.76204]
[1750065793544,32.81105652,2624.4,2624.3,0.76204]
[1750065794653,0.76204,2624.3,2624.2,2.72885]
[1750065795157,0.76204,2624.3,2624.2,1.9668]
[1750065796350,30.19703,2624.4,2624.2,1.9668]
[1750065796748,30.19703,2624.4,2624.3,0.76204]
[1750065797250,30.19703,2624.4,2624.2,2.72885]
[1750065797452,30.19703,2624.4,2624.3,0.76204]
[1750065797752,0.76204,2624.3,2624.2,2.72885]
[1750065798255,3.37605652,2624.3,2624.2,1.9668]
[1750065801641,3.37605652,2624.3,2624.2,0.6777]
[1750065802850,4.64245652,2624.3,2624.2,0.6777]
[1750065808955,2.02844,2624.3,2624.2,0.6777]
[1750065809152,3.2078,2624.4,2624.2,0.6777]
[1750065809346,0.76204,2624.3,2624.2,1.3183]
[1750065809545,0.76204,2624.3,2624.2,2.6018]
[1750065810050,0.76204,2624.3,2624.2,1.3183]
[1750065811052,3.96984,2624.3,2624.2,1.3183]
[1750065811452,5.89194,2624.3,2624.2,0.6777]
[1750065811752,0.76207,2624.2,2624.1,0.00571059]
[1750065812054,28.03208652,2624.2,2624.1,0.00571059]
[1750065817057,30.64610304,2624.2,2624.1,0.00571059]
[1750065819163,30.64610304,2624.2,2624.1,5.9e-07]
[1750065819359,28.03208652,2624.2,2624.1,5.9e-07]
[1750065820365,0.76219,2623.8,2623.7,0.66390059]
[1750065820556,36.02400652,2623.8,2623.7,0.66390059]
[1750065822154,0.00571059,2624.0,2623.7,11.48571711]
[1750065822358,24.13113,2624.1,2623.8,0.76217]
[1750065822563,24.13113,2624.1,2623.9,0.76216]
[1750065822758,6.072,2624.2,2624.0,1.3103]
[1750065822960,29.441,2624.2,2624.0,1.3103]
[1750065823166,29.441,2624.2,2624.1,0.7621]
[1750065823363,6.072,2624.2,2624.1,0.7621]
[1750065823663,30.20207,2624.2,2624.1,1.412]
[1750065823855,30.20207,2624.2,2624.1,0.6499]
[1750065824252,30.20207,2624.2,2624.1,1.9602]
[1750065825169,6.072,2624.2,2624.1,2.7223]
[1750065825671,6.072,2624.2,2624.1,3.3966]
[1750065826368,6.83407,2624.2,2624.1,3.3966]
[1750065826869,6.072,2624.2,2624.1,3.3966]
[1750065827362,6.83407,2624.2,2624.1,2.6345]
[1750065827866,6.83407,2624.2,2624.1,3.3966]
[1750065828459,6.83407,2624.2,2624.1,2.6345]
[1750065836875,9.44808652,2624.2,2624.1,2.6345]
[1750065839174,6.83407,2624.2,2624.1,2.6345]
[1750065839375,9.44808652,2624.2,2624.1,2.6345]
[1750065840173,9.44808652,2624.2,2624.1,1.3242]
[1750065841575,9.44808652,2624.2,2624.1,0.6743]
[1750065841771,0.76216,2623.9,2623.8,0.28426356]
[1750065841972,0.76222,2623.7,2623.6,0.6717]
[1750065842173,30.19622,2623.7,2623.6,0.6717]
[1750065842481,32.81023652,2623.7,2623.6,0.6717]
[1750065842669,32.81023652,2623.7,2623.6,1.43394]
[1750065843073,2.61401652,2623.9,2623.7,0.76219]
[1750065843272,29.434,2623.8,2623.7,0.76219]
[1750065843471,29.434,2623.8,2623.7,1.98999]
[1750065844176,2.61401652,2624.3,2623.7,6.2278]
[1750065844372,6.83312,2624.1,2624.0,0.76213]
[1750065844769,6.071,2624.1,2624.0,0.76213]
[1750065844971,6.8331,2624.1,2624.0,0.76213]
[1750065846581,2.61401652,2624.2,2623.9,0.6639]
[1750065846782,24.12506,2624.3,2624.2,0.76206]
[1750065847379,26.73907652,2624.3,2624.2,0.76206]
[1750065848888,0.7621,2624.1,2624.0,2.09511]
[1750065849083,0.76213,2624.0,2623.9,2.94660348]
[1750065849288,0.76213,2624.0,2623.9,1.42605]
[1750065849582,3.37613652,2624.1,2624.0,0.76213]
[1750065850679,8.68301652,2624.3,2624.2,0.76205]
[1750065850880,0.76208,2624.2,2624.1,0.76208]
[1750065853980,0.7621,2624.1,2624.0,0.76211]
[1750065854181,3.37611652,2624.1,2624.0,0.76211]
[1750065854486,2.61401652,2624.1,2624.0,0.76211]
[1750065855185,3.37611652,2624.1,2624.0,0.76211]
[1750065855384,2.61401652,2624.1,2624.0,0.76211]
[1750065856791,3.37611652,2624.1,2624.0,0.76211]
[1750065858495,2.61401652,2624.1,2624.0,0.76211]
[1750065858990,2.61401652,2624.1,2624.0,2.28266348]
[1750065859294,0.76208,2624.2,2624.1,0.7621]
[1750065859795,0.76212,2624.1,2624.0,0.76211]
[1750065862500,0.76209,2624.2,2624.1,0.76208]
[1750065864200,0.7621,2624.1,2624.0,0.76211]
[1750065864399,0.76209,2624.2,2624.1,0.76208]
[1750065864903,32.80406652,2624.3,2624.2,0.76207]
[1750065865500,0.76208,2624.2,2624.1,0.76208]
[1750065866009,0.7621,2624.1,2624.0,0.6457]
[1750065866295,0.76213,2624.0,2623.9,2.18445348]
[1750065866501,24.12113,2624.0,2623.9,1.52055348]
[1750065866805,24.12113,2624.0,2623.6,2.19115348]
[1750065866806,27.23261652,2624.0,2623.6,2.19115348]
[1750065867103,3.37623652,2623.7,2623.6,0.6706]
[1750065867998,3.37623652,2623.7,2623.6,1.43284]
[1750065868401,3.37623652,2623.7,2623.6,0.6706]
[1750065868806,3.37623652,2623.7,2623.6,1.43284]
[1750065870003,2.61401652,2623.7,2623.6,1.43284]
[1750065870700,3.37623652,2623.7,2623.6,1.43284]
[1750065871001,3.37623652,2623.7,2623.6,0.6706]
[1750065871203,26.73623652,2623.7,2623.6,0.6706]
[1750065871703,26.73623652,2623.7,2623.6,1.43284]
[1750065873996,26.73623652,2623.7,2623.6,0.6706]
[1750065874508,26.73623652,2623.7,2623.6,1.43284]
[1750065874801,26.73623652,2623.7,2623.6,0.6706]
[1750065875193,28.07873652,2623.7,2623.6,0.6706]
[1750065876698,0.76224,2623.6,2623.5,0.00571059]
[1750065876900,2.10474,2623.6,2623.5,0.00571059]
[1750065880300,2.10474,2623.6,2623.5,0.76798059]
[1750065882710,5.31254,2623.6,2623.5,0.00571059]
[1750065883114,28.67254,2623.6,2623.5,0.00571059]
[1750065883611,27.33004,2623.6,2623.5,0.00571059]
[1750065884603,28.61784,2623.6,2623.5,0.00571059]
[1750065891506,27.33004,2623.6,2623.5,0.00571059]
[1750065891714,3.2078,2623.6,2623.5,0.76798059]
[1750065891918,29.426,2623.7,2623.6,0.76224]
[1750065892315,29.426,2623.7,2623.6,1.39174]
[1750065892609,6.067,2623.7,2623.6,1.39174]
[1750065892810,6.82922,2623.7,2623.6,1.39174]
[1750065893016,6.82922,2623.7,2623.6,0.6295]
[1750065893417,9.44323652,2623.7,2623.6,0.6295]
[1750065893716,9.44323652,2623.7,2623.6,1.39174]
[1750065893917,9.44323652,2623.7,2623.6,0.6295]
[1750065894114,9.44323652,2623.7,2623.6,1.39174]
[1750065895624,8.68101652,2623.7,2623.6,1.39174]
[1750065896017,29.425,2623.7,2623.6,1.39174]
[1750065896316,29.425,2623.7,2623.6,2.64524]
[1750065897826,6.067,2623.7,2623.6,2.64524]
[1750065899023,6.82922,2623.7,2623.6,2.64524]
[1750065900523,6.067,2623.7,2623.6,2.64524]
[1750065900721,5.82181652,2623.9,2623.6,2.64524]
[1750065900722,6.58398652,2623.9,2623.6,1.883]
[1750065900923,24.11819,2623.8,2623.7,1.37692]
[1750065902023,3.2078,2624.2,2623.7,0.6147]
[1750065902323,2.61401652,2623.9,2623.7,1.8594]
[1750065902520,0.76219,2623.8,2623.7,2.62159]
[1750065902723,3.37619652,2623.9,2623.8,0.76219]
[1750065902923,2.61401652,2623.9,2623.8,0.76219]
[1750065903122,3.37617652,2623.9,2623.8,0.76219]
[1750065903424,2.61401652,2623.9,2623.8,0.76219]
[1750065903625,3.37617652,2623.9,2623.8,0.76219]
[1750065903828,2.61401652,2623.9,2623.8,0.76219]
[1750065905419,6.067,2624.3,2623.8,3.42601348]
[1750065905725,6.067,2624.3,2624.2,0.76207]
[1750065906113,0.00571059,2624.4,2624.3,0.76204]
[1750065906317,29.42571059,2624.4,2624.3,0.76204]
[1750065906517,23.35871059,2624.4,2624.2,0.62]
[1750065906725,2.61401652,2624.3,2624.2,1.38207]
[1750065907926,2.61401652,2624.3,2624.2,0.62]
[1750065908125,3.37605652,2624.3,2624.2,0.62]
[1750065908726,3.37605652,2624.3,2624.2,1.38207]
[1750065908925,2.61401652,2624.3,2624.2,1.38207]
[1750065910323,3.37605652,2624.3,2624.2,1.38207]
[1750065911033,23.351,2624.3,2624.2,1.38207]
[1750065911329,30.18074059,2624.4,2624.3,0.76204]
[1750065912727,24.11774059,2624.4,2624.3,0.76204]
[1750065914734,23.35571059,2624.4,2624.3,0.76204]
[1750065915033,0.00571059,2624.4,2624.3,0.76204]
[1750065915635,0.76772059,2624.4,2624.3,2.00504]
[1750065917134,0.00571059,2624.4,2624.3,2.00504]
[1750065917335,0.76772059,2624.4,2624.3,2.00504]
[1750065917632,0.00571059,2624.4,2624.3,2.00504]
[1750065923246,0.00571059,2624.4,2624.3,5.21284]
[1750065924149,0.00571059,2624.4,2624.3,6.73339348]
[1750065924350,3.37593652,2624.8,2624.7,0.76193]
[1750065924650,0.76192,2624.8,2624.7,0.76193]
[1750065924950,3.37593652,2624.8,2624.7,0.76193]
[1750065926353,2.61401652,2624.8,2624.7,0.76193]
[1750065927642,6.82289,2624.9,2624.8,0.7619]
[1750065928456,0.76191,2624.8,2624.7,0.76191]
[1750065929051,0.76191,2624.8,2624.5,1.3375]
[1750065929052,0.76197,2624.6,2624.5,0.76197]
[1750065929356,3.37598652,2624.6,2624.5,0.76197]
[1750065929758,2.71445,2624.7,2624.6,0.76195]
[1750065929958,5.32846652,2624.7,2624.6,0.76195]
[1750065931952,2.61401652,2624.7,2624.6,0.76195]
[1750065932151,3.37594652,2624.7,2624.6,0.76195]
[1750065933060,2.61401652,2624.7,2624.6,0.76195]
[1750065933652,0.76191,2624.8,2624.7,0.76193]
[1750065934161,9.43690652,2624.9,2624.8,0.7619]
[1750065934356,6.82289,2624.9,2624.8,0.7619]
[1750065934555,6.061,2624.9,2624.8,0.7619]
[1750065934861,6.82287,2624.9,2624.8,0.7619]
[1750065935059,9.43688652,2624.9,2624.8,0.7619]
[1750065936558,8.67501652,2624.9,2624.8,0.7619]
[1750065938258,2.61401652,2624.9,2624.8,0.7619]
[1750065938659,0.76757059,2625.0,2624.9,0.76187]
[1750065942062,0.76162,2625.8,2625.7,0.76163]
[1750065942360,7.47367,2626.0,2625.8,0.76159]
[1750065942559,7.47367,2626.0,2625.5,5.82181652]
[1750065942560,7.47367,2626.0,2625.9,0.76158]
[1750065942765,6.7121,2626.0,2625.9,0.76158]
[1750065942968,6.055,2626.0,2625.9,0.76158]
[1750065944163,0.00571059,2626.2,2626.1,0.76152]
[1750065944357,0.76723059,2626.2,2626.0,0.76154]
[1750065944554,0.00571059,2626.2,2626.1,3.96932]
[1750065944963,0.00571059,2626.2,2626.1,6.58333652]
[1750065945174,0.00571059,2626.2,2626.1,7.24193652]
[1750065945464,8.06347,2626.7,2626.5,0.76139]
[1750065946468,6.054,2626.7,2626.6,0.76137]
[1750065947066,6.054,2626.7,2626.5,0.76139]
[1750065947067,6.81536,2626.7,2626.5,0.76139]
[1750065947376,0.76137,2626.6,2626.5,0.76139]
[1750065948065,6.81536,2626.7,2626.3,2.61401652]
[1750065948262,6.054,2626.7,2626.6,0.76137]
[1750065948675,6.81535,2626.7,2626.6,0.76137]
[1750065948866,6.81535,2626.7,2626.5,0.76139]
[1750065949167,0.76137,2626.6,2626.5,1.43549]
[1750065949372,0.76137,2626.6,2626.5,0.6741]
[1750065952376,0.00380704,2626.9,2626.8,0.76132]
[1750065953469,2.61782356,2626.9,2626.7,0.76133]
[1750065953773,2.61782356,2626.9,2626.6,0.6179]
[1750065953975,0.76133,2626.8,2626.6,1.37925]
[1750065954272,0.76133,2626.8,2626.7,0.76135]
[1750065954473,3.37913356,2626.9,2626.8,0.76132]
[1750065954673,0.00380704,2626.9,2626.8,0.76132]
[1750065955672,3.96901,2627.2,2627.1,0.76123]
[1750065955868,6.051,2627.4,2627.0,5.82181652]
[1750065956173,0.76117,2627.3,2627.2,0.76119]
[1750065956374,6.051,2627.4,2627.3,0.76117]
[1750065956573,5.59318014,2627.6,2627.2,2.61401652]
[1750065956880,0.76113,2627.5,2627.4,0.76114]
[1750065957171,0.76113,2627.5,2627.2,2.61401652]
[1750065957172,0.76117,2627.4,2627.2,0.76119]
[1750065957367,0.76117,2627.4,2627.3,0.76117]
[1750065958068,0.76117,2627.4,2627.2,3.37519652]
[1750065958268,0.76117,2627.4,2627.3,0.76117]
[1750065958973,0.76117,2627.3,2627.1,3.33342059]
[1750065959274,0.76117,2627.3,2627.2,0.7612]
[1750065960266,0.7612,2627.2,2627.1,0.00571059]
[1750065960472,4.63371652,2627.2,2627.1,0.00571059]
[1750065962371,0.6139,2627.5,2627.1,0.00571059]
[1750065962575,3.51230167,2627.7,2627.3,3.37517652]
[1750065962576,0.76114,2627.4,2627.3,3.37517652]
[1750065962779,0.76114,2627.4,2627.2,0.76119]
[1750065963379,0.76117,2627.3,2627.2,0.76119]
[1750065963683,8.66401652,2627.6,2627.1,2.01481059]
[1750065963882,0.7612,2627.3,2627.2,0.7612]
[1750065964868,6.05,2627.9,2627.2,1.90301]
[1750065965073,0.76104,2627.8,2627.7,0.76103]
[1750065965279,6.05,2627.9,2627.8,0.76103]
[1750065965280,6.81102,2627.9,2627.8,0.76103]
[1750065965480,23.79299,2628.0,2627.9,0.761]
[1750065965685,29.84299,2628.0,2627.9,0.761]
[1750065965882,29.84299,2628.0,2627.7,3.2078]
[1750065965883,0.76103,2627.8,2627.7,4.63535]
[1750065966186,29.082,2628.0,2627.7,4.63535]
[1750065966187,0.76102,2627.9,2627.7,39.13535]
[1750065966487,0.76102,2627.9,2627.8,0.76103]
[1750065966983,0.76103,2627.8,2627.7,39.13534]
[1750065967185,0.76103,2627.8,2627.7,38.3743]
[1750065967383,0.76103,2627.8,2627.7,39.13536]
[1750065967576,0.76103,2627.9,2627.7,39.13534]
[1750065967778,0.76103,2627.8,2627.7,39.13534]
[1750065968676,29.082,2628.0,2627.7,39.13534]
[1750065968677,0.76102,2627.9,2627.7,39.13534]
[1750065969080,0.76103,2627.8,2627.7,39.13534]
[1750065969589,0.76103,2627.8,2627.7,38.3743]
[1750065969975,0.76103,2627.8,2627.7,35.1665]
[1750065970179,0.76106,2627.7,2627.6,0.6295]
[1750065970481,0.76106,2627.7,2627.6,1.39058]
[1750065970683,0.76105,2627.8,2627.7,0.76106]
[1750065971182,33.6008,2628.0,2627.8,0.76101]
[1750065971183,0.76102,2627.9,2627.8,0.76101]
[1750065971889,0.76103,2627.8,2627.7,4.62174]
[1750065973390,0.76106,2627.7,2627.6,0.6295]
[1750065973891,0.76104,2627.8,2627.6,1.39056]
[1750065974086,0.76106,2627.7,2627.6,1.39056]
[1750065975188,0.76105,2627.8,2627.7,0.76105]
[1750065975905,0.76102,2627.9,2627.8,0.76102]
[1750065976087,6.80399,2628.0,2627.8,3.2078]
[1750065976295,0.761,2627.9,2627.8,3.96881]
[1750065976489,0.761,2627.9,2627.8,4.61871]
[1750065978894,0.76106,2627.7,2627.6,0.6295]
[1750065979398,0.76117,2627.3,2627.2,4.4932]
[1750065979593,0.76117,2627.3,2627.2,3.8567]
[1750065980280,0.7612,2627.2,2627.1,0.00571059]
[1750065981193,2.0981,2627.2,2627.1,0.00571059]
[1750065982298,2.0981,2627.2,2627.1,0.76694059]
[1750065982496,2.0981,2627.2,2627.1,0.00571059]
[1750065983201,2.0981,2627.2,2627.1,0.76694059]
[1750065983402,0.7612,2627.2,2627.1,0.76694059]
[1750065984702,1.3369,2627.5,2627.1,0.00571059]
[1750065984996,0.76117,2627.3,2627.2,0.7612]
[1750065985790,0.76117,2627.3,2627.1,0.00571059]
[1750065985791,0.7612,2627.2,2627.1,0.76692059]
[1750065987192,0.76119,2627.3,2627.2,0.76119]
[1750065987502,0.7612,2627.2,2627.1,0.76692059]
[1750065989502,0.7612,2627.2,2627.1,0.76694059]
[1750065990903,0.76119,2627.3,2627.2,0.76118]
[1750065991401,6.044,2627.4,2627.1,0.76692059]
[1750065991402,0.7612,2627.2,2627.1,0.76692059]
[1750065992605,0.76119,2627.3,2627.2,0.76118]
[1750065993299,6.044,2627.4,2627.3,0.76117]
[1750065993500,6.80514,2627.4,2627.3,0.76117]
[1750065994799,0.76119,2627.3,2627.2,0.76118]
[1750065997602,6.80516,2627.4,2627.3,0.76117]
[1750066000903,2.09802,2627.5,2627.4,0.76114]
[1750066001104,0.76112,2627.5,2627.4,3.96894]